bitfinex-derivatives/quotes_ETHF0:USTF0_20210111
["timestamp","ask_amount","ask_price","bid_price","bid_amount"]
[1610389726058,45.19872173,1013.1,1012.9,4.00959]
[1610389726958,15.66447371,1013.2,1012.9,4.00959]
[1610389726959,45.19500029,1013.2,1012.9,4.00959]
[1610389727158,45.19500029,1013.2,1012.9,13.34449]
[1610389727662,45.17940143,1013.5,1012.9,13.34449]
[1610389727862,45.17940143,1013.5,1013.4,4.00959]
[1610389728060,60.83384811,1013.6,1013.4,4.00959]
[1610389728259,45.17607022,1013.6,1013.4,4.00959]
[1610389728660,60.83248827,1013.6,1013.4,4.00959]
[1610389729066,12.65264054,1013.5,1013.4,4.00959]
[1610389729261,6.02535356,1013.5,1013.4,4.00959]
[1610389729461,35.52928018,1013.8,1013.4,4.00959]
[1610389729462,45.16734638,1013.8,1013.4,4.00959]
[1610389729661,46.94146965,1014.0,1013.4,4.00959]
[1610389729861,46.94146965,1014.0,1013.9,4.00959]
[1610389730261,45.16006965,1014.0,1013.9,4.00959]
[1610389730462,45.15058347,1014.2,1013.9,82.44299]
[1610389731262,45.14835008,1014.3,1013.9,83.93569]
[1610389731962,45.14835008,1014.3,1014.2,4.00959]
[1610389732462,15.64627567,1014.3,1014.2,4.00959]
[1610389734565,45.13439356,1014.3,1014.2,4.00959]
[1610389734965,45.13018167,1014.5,1014.2,4.00959]
[1610389735266,45.1298247,1014.6,1014.2,4.00959]
[1610389735864,60.76890789,1014.7,1014.2,4.00959]
[1610389736064,60.76890789,1014.7,1014.5,4.00959]
[1610389736263,45.12735919,1014.6,1014.5,4.00959]
[1610389736867,15.64086761,1014.6,1014.5,4.00959]
[1610389737665,60.76949732,1014.6,1014.5,4.00959]
[1610389737865,45.12862971,1014.6,1014.5,4.00959]
[1610389739268,46.65974226,1014.7,1014.5,4.00959]
[1610389739472,45.11674226,1014.7,1014.6,77.2235]
[1610389739670,18.04068534,1015.0,1014.6,77.2235]
[1610389739671,45.09563888,1015.0,1014.6,77.2235]
[1610389740069,45.08532172,1015.4,1014.6,77.2235]
[1610389740266,45.08186449,1015.6,1014.6,77.2235]
[1610389740467,45.08186449,1015.6,1015.3,4.00959]
[1610389740667,60.70507968,1015.7,1015.3,4.00959]
[1610389741067,45.08047237,1015.6,1015.3,4.00959]
[1610389741266,47.00477237,1015.6,1015.3,4.00959]
[1610389742271,45.08345278,1015.5,1015.3,4.00959]
[1610389742568,15.62548594,1015.4,1014.4,2.4709]
[1610389742970,45.08954653,1015.2,1014.1,60.1436]
[1610389743168,46.93304653,1015.2,1014.1,60.1436]
[1610389743368,46.93304653,1015.2,1013.5,65.9816]
[1610389743580,45.10654554,1015.0,1013.5,65.9816]
[1610389743985,45.11241442,1014.6,1012.5,0.26922497]
[1610389744180,46.67761442,1014.6,1012.8,67.2307]
[1610389744377,4.00959,1013.7,1013.2,4.00959]
[1610389744770,5.98469,1013.7,1013.2,4.00959]
[1610389745770,1.9751,1013.7,1013.2,4.00959]
[1610389746472,1.9751,1013.7,1013.5,4.00959]
[1610389746671,1.9751,1013.7,1012.5,72.4427]
[1610389747075,1.9751,1013.7,1012.3,1.7596]
[1610389747274,47.13592248,1013.7,1012.3,1.7596]
[1610389747674,45.16449153,1013.6,1012.3,1.7596]
[1610389747874,45.16449153,1013.6,1011.9,63.3836]
[1610389748074,45.16804939,1013.5,1011.9,63.3836]
[1610389748374,4.00959,1012.9,1012.7,4.00959]
[1610389748575,6.15739,1012.9,1012.7,4.00959]
[1610389748774,6.15739,1012.9,1011.9,63.3836]
[1610389749375,6.15739,1012.9,1011.2,0.27243183]
[1610389749577,6.15739,1012.9,1011.3,57.6369]
[1610389749775,6.15739,1012.9,1011.3,59.8088]
[1610389750176,45.18911589,1012.8,1011.3,59.8088]
[1610389750377,4.00959,1011.8,1011.6,4.00959]
[1610389750778,4.00959,1011.8,1010.8,0.27288441]
[1610389750981,4.00959,1011.8,1010.6,66.37339753]
[1610389751380,4.00959,1011.8,1010.6,66.1004]
[1610389752290,1.5838,1012.0,1010.6,66.1004]
[1610389752482,1.5838,1012.0,1011.8,4.00959]
[1610389753080,1.5838,1012.0,1011.2,78.5444]
[1610389753980,1.5838,1012.0,1010.6,2.0879]
[1610389754381,4.00959,1011.5,1011.3,4.00959]
[1610389754584,5.54049,1011.5,1011.3,4.00959]
[1610389755185,5.54049,1011.5,1010.5,79.6447]
[1610389756386,5.54049,1011.5,1011.2,4.00959]
[1610389756584,5.54049,1011.5,1010.5,79.6447]
[1610389757186,5.54049,1011.5,1010.1,2.3994]
[1610389758187,5.54049,1011.5,1010.1,10.4905]
[1610389758388,5.54049,1011.5,1011.2,4.00959]
[1610389758988,5.54049,1011.5,1010.6,58.7234]
[1610389760189,1.5309,1011.5,1010.6,58.7234]
[1610389760389,4.00959,1011.8,1011.4,4.00959]
[1610389760788,45.24792403,1011.8,1011.4,4.00959]
[1610389760989,7.91560305,1011.7,1011.4,4.00959]
[1610389761390,2.2945,1011.7,1011.4,4.00959]
[1610389762491,6.30409,1011.7,1010.6,58.7234]
[1610389763094,51.55184357,1011.7,1010.6,58.7234]
[1610389763893,6.30409,1011.7,1010.6,58.7234]
[1610389764495,4.00959,1011.5,1011.3,4.00959]
[1610389765095,2.2945,1011.7,1011.3,4.00959]
[1610389766396,2.2945,1011.7,1011.6,4.00959]
[1610389766595,46.8239836,1012.0,1011.6,4.00959]
[1610389766797,1.5838,1012.0,1011.6,4.00959]
[1610389766996,45.22669347,1012.2,1011.6,4.00959]
[1610389767198,45.21567087,1012.5,1011.6,4.00959]
[1610389767797,45.21260087,1012.6,1011.6,4.00959]
[1610389768198,45.21260087,1012.6,1011.8,69.7658]
[1610389768402,47.34620443,1012.9,1012.5,4.00959]
[1610389768801,2.1478,1012.9,1012.6,72.7854]
[1610389769000,45.18060963,1013.4,1012.6,72.7854]
[1610389769402,47.14506583,1013.7,1012.6,72.7854]
[1610389770202,1.9751,1013.7,1013.1,56.5552]
[1610389770404,45.14775611,1014.1,1013.1,58.1534]
[1610389770804,45.14229632,1014.2,1013.1,58.1534]
[1610389771004,15.64491841,1014.3,1013.1,58.1534]
[1610389771005,45.13773082,1014.3,1014.1,4.00959]
[1610389772406,45.13728256,1014.2,1013.9,60.3493]
[1610389772608,46.64798256,1014.2,1013.9,60.3493]
[1610389772807,45.14526415,1014.1,1013.9,60.3493]
[1610389773007,45.14793439,1014.0,1013.9,60.3493]
[1610389773408,15.64823412,1014.0,1013.9,60.3493]
[1610389773807,18.05763569,1014.1,1013.9,60.3493]
[1610389774007,18.05796268,1014.0,1013.9,60.3493]
[1610389774307,18.0576338,1014.1,1013.9,60.3493]
[1610389774908,4.00959,1014.0,1013.9,60.3493]
[1610389775110,22.06772826,1014.0,1013.9,60.3493]
[1610389775608,18.05813826,1014.0,1013.9,60.3493]
[1610389775808,18.0582411,1014.1,1013.9,60.3493]
[1610389776408,1.5107,1014.2,1013.9,60.3493]
[1610389776409,15.65046114,1014.0,1013.9,60.3493]
[1610389777712,45.14997501,1014.0,1013.9,60.3493]
[1610389778111,46.65310999,1014.2,1013.9,60.3493]
[1610389778511,1.5107,1014.2,1013.9,60.3493]
[1610389778710,45.14088477,1014.3,1013.9,60.3493]
[1610389778909,45.14088477,1014.3,1014.2,4.00959]
[1610389780913,45.1281857,1014.4,1014.2,4.00959]
[1610389781313,45.12654891,1014.5,1014.2,4.00959]
[1610389781915,45.12654891,1014.5,1014.0,68.6976]
[1610389782113,47.37894891,1014.5,1012.9,2.3677]
[1610389782326,45.12665058,1014.4,1013.0,68.5265]
[1610389782915,4.00959,1014.1,1013.6,4.00959]
[1610389783117,6.36779,1014.1,1013.6,4.00959]
[1610389783616,51.5119888,1014.1,1013.6,4.00959]
[1610389784419,45.14778248,1014.0,1013.6,4.00959]
[1610389784918,45.14778248,1014.0,1013.9,4.00959]
[1610389785119,45.14778248,1014.0,1013.0,68.5265]
[1610389785320,15.64778059,1014.0,1013.0,68.5265]
[1610389785820,45.15200885,1013.9,1013.0,68.5265]
[1610389786519,45.15113041,1014.0,1013.0,68.5265]
[1610389786719,45.15265017,1013.9,1013.0,68.5265]
[1610389787119,45.15265017,1013.9,1013.8,4.00959]
[1610389787620,45.15265017,1013.9,1013.0,68.5265]
[1610389788020,45.15265017,1013.9,1012.4,2.2488]
[1610389788219,45.15265017,1013.9,1012.4,77.0264]
[1610389788622,45.15762599,1013.8,1012.4,77.0264]
[1610389789122,4.00959,1013.7,1013.5,4.00959]
[1610389789322,4.00959,1013.7,1012.4,77.0264]
[1610389789522,47.18562599,1013.8,1012.4,77.0264]
[1610389789922,47.18562599,1013.8,1012.4,79.2731]
[1610389790122,2.028,1013.8,1012.4,79.2731]
[1610389791038,2.028,1013.8,1013.7,4.00959]
[1610389791633,2.028,1013.8,1012.4,79.2731]
[1610389792433,47.18425036,1013.8,1012.4,79.2731]
[1610389792633,45.16148136,1013.7,1012.4,79.2731]
[1610389793034,4.00959,1013.0,1012.8,4.00959]
[1610389793232,4.00959,1013.0,1012.4,2.2467]
[1610389793634,2.1099,1013.3,1012.4,2.2467]
[1610389794033,2.1099,1013.3,1012.1,63.3946]
[1610389795034,4.00959,1013.2,1013.1,4.00959]
[1610389795234,2.1099,1013.3,1013.1,4.00959]
[1610389796435,2.1099,1013.3,1012.7,66.4213]
[1610389797037,2.1099,1013.3,1013.2,4.00959]
[1610389798438,2.028,1013.8,1013.2,4.00959]
[1610389798639,45.15267923,1014.0,1013.2,4.00959]
[1610389799039,45.15267923,1014.0,1013.9,4.00959]
[1610389799440,18.00671681,1014.1,1013.9,4.00959]
[1610389799441,2.3582,1014.1,1013.9,4.00959]
[1610389799640,45.14274685,1014.2,1013.9,4.00959]
[1610389799840,45.14273935,1014.1,1013.9,4.00959]
[1610389800040,46.88473935,1014.1,1013.9,4.00959]
[1610389800640,1.742,1014.1,1013.1,56.2165]
[1610389801041,4.00959,1014.0,1013.4,4.00959]
[1610389801240,4.00959,1014.0,1013.1,56.2165]
[1610389801441,49.15791002,1014.0,1013.1,56.2165]
[1610389802040,45.15481603,1013.9,1013.1,56.2165]
[1610389802341,49.16238048,1014.0,1013.1,56.2165]
[1610389802640,45.15983794,1013.9,1013.1,56.2165]
[1610389803041,4.00959,1013.5,1013.2,4.00959]
[1610389803240,6.49299,1013.5,1013.2,4.00959]
[1610389803441,6.49299,1013.5,1013.1,56.2165]
[1610389803641,2.4834,1013.5,1013.1,56.2165]
[1610389805042,2.4834,1013.5,1013.4,4.00959]
[1610389807648,2.4834,1013.5,1013.1,56.2165]
[1610389807848,2.4834,1013.5,1012.4,2.042]
[1610389808048,2.4834,1013.5,1012.4,64.2592]
[1610389808449,51.35800041,1013.9,1012.4,64.2592]
[1610389808651,45.15893494,1013.8,1012.4,65.8189]
[1610389808850,47.44283494,1013.8,1012.4,65.8189]
[1610389809251,4.00959,1013.5,1013.3,4.00959]
[1610389809449,6.00119,1013.5,1013.3,4.00959]
[1610389810050,6.00119,1013.5,1012.4,64.2592]
[1610389811052,1.9916,1013.5,1012.4,64.2592]
[1610389811862,1.9916,1013.5,1011.9,0.27921252]
[1610389812057,1.9916,1013.5,1012.9,55.7244]
[1610389813256,1.9916,1013.5,1013.4,4.00959]
[1610389814552,2.2839,1013.8,1013.4,4.00959]
[1610389814752,5.75159,1014.1,1013.4,4.00959]
[1610389815252,5.75159,1014.1,1013.7,4.00959]
[1610389817155,5.75159,1014.1,1012.9,55.7244]
[1610389819257,5.75159,1014.1,1013.7,4.00959]
[1610389819558,5.75159,1014.1,1012.9,55.7244]
[1610389819957,50.89659996,1014.1,1012.9,55.7244]
[1610389820159,80.89659996,1014.1,1012.9,55.7244]
[1610389820358,80.89659996,1014.1,1012.4,1.87784015]
[1610389820559,80.89659996,1014.1,1012.4,72.3026]
[1610389820560,30.0,1013.8,1012.4,72.3026]
[1610389820762,32.3355,1013.8,1012.4,72.3026]
[1610389820960,77.49668718,1013.8,1012.4,72.3026]
[1610389821160,4.00959,1013.2,1012.7,4.00959]
[1610389821360,2.2272,1013.4,1012.8,8.7737]
[1610389822363,2.3355,1013.8,1012.8,8.7737]
[1610389822562,2.3355,1013.8,1013.1,57.5941]
[1610389822763,2.3355,1013.8,1013.1,57.87685216]
[1610389822961,1.742,1014.1,1013.1,59.44745216]
[1610389823162,2.2524,1014.5,1014.0,4.00959]
[1610389823362,45.11425844,1014.8,1014.0,4.00959]
[1610389823562,4.00959,1014.9,1014.0,4.00959]
[1610389823762,49.12007753,1014.9,1014.0,4.00959]
[1610389824162,57.01079949,1014.9,1013.8,79.1171]
[1610389824362,30.0,1014.8,1013.6,1.6767]
[1610389824763,75.11512759,1014.8,1013.2,57.1655]
[1610389824962,45.12410266,1014.6,1013.2,57.1655]
[1610389825162,4.00959,1013.5,1013.2,57.1655]
[1610389825363,4.00959,1013.5,1013.1,1.5706]
[1610389825561,4.00959,1013.5,1012.7,2.02501032]
[1610389825763,4.00959,1013.5,1012.1,84.11457711]
[1610389825966,13.91619,1013.5,1012.1,82.6932514]
[1610389826162,13.91619,1013.5,1011.8,1.42498786]
[1610389826163,65.8884,1013.3,1011.8,1.42498786]
[1610389826368,67.4468,1013.3,1011.6,1.42684372]
[1610389826567,30.0,1013.2,1011.6,1.42684372]
[1610389826767,30.0,1013.2,1011.4,1.42759573]
[1610389826970,39.0,1013.2,1011.3,75.42499563]
[1610389827170,4.00959,1011.4,1011.3,1.42849563]
[1610389827369,67.6986,1012.2,1011.2,1.42797421]
[1610389827570,67.6986,1012.2,1011.2,2.4512]
[1610389827769,30.0,1012.1,1011.2,2.4512]
[1610389828168,32.1865,1012.1,1010.8,1.4293738]
[1610389828369,59.1961,1011.8,1010.8,1.4293738]
[1610389828570,30.0,1011.7,1010.5,1.43079812]
[1610389828770,11.3571,1011.8,1010.5,1.43079812]
[1610389828970,66.4694,1011.4,1010.3,1.43202238]
[1610389829176,2.3942,1011.4,1010.4,4.00959]
[1610389829370,2.3942,1011.4,1010.2,1.494]
[1610389829573,11.751,1011.4,1010.2,1.494]
[1610389829770,2.3942,1011.4,1010.2,1.494]
[1610389829974,70.6861,1011.3,1010.2,1.494]
[1610389830470,70.6861,1011.3,1009.6,1.44353318]
[1610389830872,70.6861,1011.3,1009.4,62.7610527]
[1610389831272,7.91922392,1011.2,1009.4,62.7610527]
[1610389831574,26.61422363,1011.3,1009.3,1.44881679]
[1610389831778,77.7547,1010.7,1009.3,3.70911679]
[1610389831979,79.9867,1010.7,1009.3,3.70911679]
[1610389832177,79.9867,1010.7,1009.3,2.2603]
[1610389832978,79.9867,1010.7,1008.9,1.45302244]
[1610389833175,79.9867,1010.7,1008.8,1.45603345]
[1610389833176,7.92452456,1010.5,1008.8,1.45603345]
[1610389833378,4.00959,1010.1,1009.7,4.00959]
[1610389833579,5.89689,1010.1,1008.8,1.45603345]
[1610389834880,5.89689,1010.1,1008.7,1.45706583]
[1610389835094,1.8873,1010.1,1009.2,82.1983]
[1610389835292,1.8873,1010.1,1010.0,4.00959]
[1610389835490,2.232,1010.7,1010.0,4.00959]
[1610389835686,2.232,1010.7,1010.3,59.5231]
[1610389835888,17.62055351,1011.2,1010.3,59.5231]
[1610389836091,47.1820413,1011.5,1010.3,59.5231]
[1610389836490,47.17677461,1011.7,1010.3,59.5231]
[1610389837093,34.50385701,1011.7,1010.3,61.4458]
[1610389837283,4.00959,1011.5,1011.2,4.00959]
[1610389837485,6.38509,1011.5,1010.3,61.4458]
[1610389839396,4.00959,1011.0,1010.3,61.4458]
[1610389839995,1.964,1011.1,1010.3,61.4458]
[1610389840593,2.3755,1011.5,1010.3,61.4458]
[1610389841393,4.00959,1011.1,1010.7,4.00959]
[1610389841592,2.3755,1011.5,1010.7,4.00959]
[1610389841994,2.3755,1011.5,1010.7,14.82489]
[1610389842195,2.3755,1011.5,1010.7,4.00959]
[1610389842695,2.3571,1011.8,1010.8,76.5714]
[1610389842896,47.14706292,1012.2,1010.8,76.5714]
[1610389843094,62.81913587,1012.2,1010.8,76.5714]
[1610389843294,4.00959,1011.6,1011.4,4.00959]
[1610389843595,6.09469,1011.6,1010.4,0.28909222]
[1610389843797,36.09469,1011.6,1010.4,0.28909222]
[1610389843998,36.09469,1011.6,1010.2,0.28983288]
[1610389844197,47.18617021,1011.3,1009.6,59.3681451]
[1610389844397,30.0,1011.2,1009.6,59.3681451]
[1610389844597,30.0,1011.2,1009.6,59.0771]
[1610389844598,62.88347764,1011.1,1009.6,59.0771]
[1610389844797,30.0,1011.0,1009.6,59.0771]
[1610389844997,30.0,1011.0,1009.2,0.87448847]
[1610389844998,47.20358525,1010.8,1009.2,0.29198106]
[1610389845200,77.21310742,1010.7,1009.1,0.29256676]
[1610389845398,4.00959,1009.2,1009.1,0.29256676]
[1610389846002,2.161,1009.7,1008.8,4.00959]
[1610389847402,2.161,1009.7,1009.3,4.00959]
[1610389848406,8.3753,1009.6,1008.6,0.29564112]
[1610389848601,2.161,1009.7,1008.6,0.29564112]
[1610389848802,2.161,1009.7,1008.5,1.97548824]
[1610389848803,60.1541,1009.7,1008.5,1.97548824]
[1610389849002,2.161,1009.7,1008.5,1.97548824]
[1610389849202,2.161,1009.7,1008.4,0.59157648]
[1610389849203,65.8341,1009.6,1008.4,0.29596503]
[1610389849402,65.8341,1009.6,1008.3,0.29621114]
[1610389849403,4.00959,1008.5,1008.3,0.29621114]
[1610389849803,4.00959,1008.5,1008.1,0.29648812]
[1610389850011,4.00959,1008.5,1007.8,1.18595247]
[1610389850012,75.6392,1008.4,1007.8,0.88971237]
[1610389850203,64.3644,1007.8,1007.2,0.15884056]
[1610389850404,64.3644,1007.8,1007.7,0.29734439]
[1610389850405,1.6129,1007.8,1007.7,0.29734439]
[1610389850805,1.6129,1007.8,1007.3,1.48672196]
[1610389850806,1.6129,1007.8,1006.6,0.89659551]
[1610389851403,1.6129,1007.8,1006.6,4.90618551]
[1610389851603,4.00959,1007.9,1006.6,4.90618551]
[1610389851803,4.00959,1007.9,1006.7,0.89645666]
[1610389852003,4.00959,1007.9,1006.8,2.57542913]
[1610389853205,4.00959,1007.9,1006.8,1.6792]
[1610389853206,13.00959,1007.9,1006.8,1.6792]
[1610389853405,4.00959,1007.0,1006.7,0.89843134]
[1610389853605,4.00959,1007.0,1006.5,1.7399]
[1610389854805,2.1386,1007.2,1006.5,1.7399]
[1610389855407,2.1386,1007.2,1006.9,4.00959]
[1610389855810,4.00959,1008.1,1006.9,6.02379]
[1610389856013,7.94596742,1007.8,1006.9,6.02379]
[1610389856413,4.00959,1008.1,1006.9,6.02379]
[1610389856612,4.00959,1008.1,1007.0,0.89668502]
[1610389857010,4.00959,1008.1,1007.1,0.89609295]
[1610389857412,4.00959,1007.3,1006.9,2.0142]
[1610389858313,1.5483,1007.8,1006.9,2.0142]
[1610389859312,4.00959,1007.5,1006.9,2.0142]
[1610389860916,4.00959,1007.5,1006.8,0.29955857]
[1610389861315,4.00959,1007.2,1006.7,0.29997937]
[1610389861920,4.00959,1007.2,1006.5,2.04009441]
[1610389862416,4.00959,1007.2,1006.5,1.7399]
[1610389862617,6.33219,1007.2,1006.4,0.30030215]
[1610389862815,6.33219,1007.2,1006.3,0.30027047]
[1610389863015,6.33219,1007.2,1006.1,0.30064031]
[1610389863516,4.00959,1006.5,1006.1,0.30064031]
[1610389863716,4.00959,1006.5,1006.0,0.30041833]
[1610389864117,4.00959,1006.5,1005.9,0.30036961]
[1610389864516,10.4257,1006.6,1005.9,0.30036961]
[1610389864717,10.4257,1006.6,1005.8,0.60073922]
[1610389864718,10.4257,1006.6,1005.8,0.30070517]
[1610389865218,2.0114,1006.6,1005.7,2.58287156]
[1610389865421,2.0114,1006.6,1005.5,0.90231469]
[1610389865422,4.00959,1005.8,1005.5,0.30042937]
[1610389865619,4.00959,1005.8,1005.3,0.30140238]
[1610389865818,14.64889,1005.8,1005.2,0.30117833]
[1610389866021,5.75499,1005.8,1005.2,0.30117833]
[1610389866223,5.75499,1005.8,1004.9,1.20471333]
[1610389866224,78.058,1005.7,1005.0,0.30180154]
[1610389866622,78.058,1005.7,1004.8,0.30211476]
[1610389866920,78.058,1005.7,1004.7,0.60422952]
[1610389866921,78.058,1005.7,1004.7,0.30208233]
[1610389867321,4.00959,1004.8,1004.6,0.30216897]
[1610389867723,4.00959,1004.8,1004.5,0.30220436]
[1610389868323,4.00959,1004.8,1004.4,0.30171702]
[1610389868524,1.752,1004.9,1004.4,0.30171702]
[1610389868724,1.752,1004.9,1004.4,57.56541702]
[1610389868923,40.69819067,1005.8,1004.4,59.44431702]
[1610389869123,40.69819067,1005.8,1004.6,0.30110533]
[1610389869124,1.7454,1005.8,1004.6,0.30110533]
[1610389869323,1.7454,1005.8,1005.7,4.00959]
[1610389869523,54.7286167,1006.1,1005.7,4.00959]
[1610389869724,38.93752775,1006.2,1005.7,4.00959]
[1610389869923,58.6982536,1006.7,1005.7,4.00959]
[1610389870323,4.00959,1006.7,1005.7,4.00959]
[1610389870724,4.00959,1006.7,1005.4,1.9584]
[1610389870925,5.87379,1006.7,1005.4,1.9584]
[1610389871326,38.93356508,1006.5,1005.4,1.9584]
[1610389871525,4.00959,1005.5,1005.0,0.29842943]
[1610389871725,4.00959,1005.5,1004.9,0.29846911]
[1610389871925,4.00959,1005.5,1004.8,0.29871481]
[1610389872128,2.1826,1005.6,1004.8,0.29871481]
[1610389873325,46.89307452,1006.5,1005.0,0.29829121]
[1610389873526,38.93683384,1006.5,1005.5,4.00959]
[1610389873728,40.79034687,1006.7,1005.5,6.08529]
[1610389874027,40.79034687,1006.7,1005.5,2.0757]
[1610389874226,1.8642,1006.7,1005.5,2.0757]
[1610389874428,56.55654618,1006.7,1005.5,2.0757]
[1610389874828,38.93977546,1006.4,1005.0,1.7801]
[1610389875028,41.23577546,1006.4,1005.0,1.7801]
[1610389875428,57.00040586,1006.4,1005.0,1.7801]
[1610389875729,2.296,1006.4,1005.1,0.29734979]
[1610389876231,1.8642,1006.7,1005.2,0.29697724]
[1610389876428,47.41115739,1007.0,1005.5,0.29657457]
[1610389876628,47.41115739,1007.0,1005.5,2.71437457]
[1610389876829,74.67847273,1007.0,1005.5,2.4178]
[1610389877028,74.67847273,1007.0,824.24,0.22360537]
[1610389877228,44.37591619,1006.7,1005.0,1.7801]
[1610389877429,4.00959,1005.9,1005.8,4.00959]
[1610389877628,1.9407,1005.9,1005.0,1.7801]
[1610389878528,1.9407,1005.9,1004.7,72.18625004]
[1610389878731,2.1957,1006.2,1004.7,72.18625004]
[1610389879130,2.1957,1006.2,1004.8,1.48149227]
[1610389879532,4.00959,1005.7,1004.8,1.48149227]
[1610389879730,4.00959,1005.7,1004.7,1.648]
[1610389879931,66.03529,1005.7,1004.7,1.648]
[1610389880131,66.03529,1005.7,1004.4,1.8789]
[1610389880330,66.03529,1005.7,1004.0,1.78354895]
[1610389880530,66.03529,1005.7,1003.8,83.79776526]
[1610389880531,62.0257,1005.7,1003.8,83.20272256]
[1610389880929,62.0257,1005.7,1004.0,1.77978754]
[1610389881130,62.0257,1005.7,1004.0,3.62298754]
[1610389881332,62.0257,1005.7,1004.3,1.77573019]
[1610389881530,62.0257,1005.7,1005.6,4.00959]
[1610389881733,1.8361,1005.9,1005.6,4.00959]
[1610389882431,4.00959,1006.0,1005.6,4.00959]
[1610389883133,4.00959,1006.0,1005.3,2.271]
[1610389883533,4.00959,1005.6,1005.3,2.271]
[1610389883733,4.00959,1005.6,1005.0,2.0287]
[1610389883940,4.00959,1005.6,1004.3,3.99566937]
[1610389884137,4.00959,1005.6,1004.3,2.2261]
[1610389885540,4.00959,1005.1,1004.9,4.00959]
[1610389885836,5.72059,1005.1,1004.1,80.8723]
[1610389886035,1.711,1005.1,1004.1,80.8723]
[1610389886938,1.5856,1005.7,1004.1,80.8723]
[1610389887238,1.5856,1005.7,1004.6,0.29528894]
[1610389887436,4.00959,1005.1,1004.9,4.00959]
[1610389887638,4.00959,1005.1,1004.5,0.29548671]
[1610389887839,1.8352,1005.4,1004.5,0.29548671]
[1610389888539,1.8352,1005.4,1004.6,0.29491032]
[1610389888740,1.5856,1005.7,1004.6,0.29491032]
[1610389888941,60.0826,1006.0,1004.8,0.29448049]
[1610389889141,2.1957,1006.2,1004.8,0.29448049]
[1610389889350,32.14591709,1006.5,1004.9,0.2939754]
[1610389889643,4.00959,1006.5,1006.4,4.00959]
[1610389890042,2.0066,1006.7,1006.4,4.00959]
[1610389890241,51.77497545,1006.8,1005.2,2.2439]
[1610389890542,67.53511072,1006.8,1005.2,2.2439]
[1610389891444,4.00959,1006.5,1006.3,4.00959]
[1610389891642,4.00959,1006.5,1005.2,2.2439]
[1610389891643,5.75499,1006.5,1005.2,2.2439]
[1610389892845,1.7454,1006.5,1005.2,2.2439]
[1610389893045,1.7454,1006.5,1005.2,2.53578757]
[1610389893547,4.00959,1006.1,1006.0,4.00959]
[1610389893749,4.00959,1006.1,1005.2,2.53578757]
[1610389895053,4.00959,1006.1,1005.2,2.2439]
[1610389895258,4.00959,1006.1,1005.1,0.29228597]
[1610389895452,4.00959,1006.1,1005.8,4.00959]
[1610389895751,4.00959,1006.1,1005.2,1.6441]
[1610389896756,4.00959,1006.1,1004.8,2.2686]
[1610389896954,4.00959,1006.1,1004.7,0.29263628]
[1610389897154,4.00959,1006.1,1004.8,0.29270188]
[1610389897355,4.00959,1006.1,1004.8,2.4639]
[1610389897556,2.374,1006.2,1005.5,4.00959]
[1610389897759,2.374,1006.2,1004.8,2.75615875]
[1610389898057,2.374,1006.2,1004.9,0.2920403]
[1610389898456,2.374,1006.2,1005.0,0.2920911]
[1610389898658,1.7454,1006.5,1005.2,0.29167357]
[1610389899059,6.2985,1006.8,1005.2,1.85907357]
[1610389899459,45.46347803,1007.0,1005.3,0.29165028]
[1610389899660,4.00959,1006.7,1006.5,4.00959]
[1610389899860,5.56239,1006.7,1005.3,0.29165028]
[1610389900463,1.5528,1006.7,1005.3,0.29165028]
[1610389901164,2.2968,1007.0,1005.5,0.29193433]
[1610389901364,2.2968,1007.0,1005.5,2.77563433]
[1610389901564,2.2968,1007.0,1006.9,4.00959]
[1610389902366,61.1767773,1007.7,1006.9,4.00959]
[1610389902766,61.17365946,1007.8,1006.9,4.00959]
[1610389902969,27.85127605,1008.0,1006.9,4.00959]
[1610389902970,45.4166127,1007.9,1006.9,4.00959]
[1610389903368,45.41514818,1008.0,1006.9,4.00959]
[1610389903568,45.41514818,1008.0,1006.8,2.3047]
[1610389903768,1.5751,1008.0,1007.9,4.00959]
[1610389904968,1.5751,1008.0,1007.1,1.5543]
[1610389905768,4.00959,1007.8,1007.1,1.5543]
[1610389905967,1.5751,1008.0,1007.1,1.5543]
[1610389907673,45.38909841,1008.5,1007.9,4.00959]
[1610389908070,61.10780967,1008.7,1007.9,4.00959]
[1610389908270,54.45040828,1008.7,1007.9,4.00959]
[1610389908470,61.09913871,1008.8,1007.9,5.93119]
[1610389908669,18.14353011,1009.0,1007.9,5.93119]
[1610389908670,45.3695202,1008.9,1007.9,5.93119]
[1610389909070,61.0914266,1009.0,1007.9,5.93119]
[1610389909671,61.0914266,1009.0,1008.9,4.00959]
[1610389910074,45.36775944,1009.0,1008.9,4.00959]
[1610389910273,45.35863883,1009.1,1008.9,4.00959]
[1610389910672,45.35369322,1009.2,1008.9,4.00959]
[1610389911072,18.13543416,1009.5,1008.9,4.00959]
[1610389911073,45.34566098,1009.4,1008.9,4.00959]
[1610389911473,61.05643287,1009.5,1008.9,4.00959]
[1610389911673,61.0504783,1009.6,1009.4,4.00959]
[1610389912074,45.33780325,1009.6,1009.4,4.00959]
[1610389912375,61.04705092,1009.7,1009.4,4.00959]
[1610389912777,61.04095434,1009.8,1009.4,4.00959]
[1610389913675,61.04095434,1009.8,1009.7,4.00959]
[1610389914081,45.33073049,1009.8,1009.7,4.00959]
[1610389914484,61.01008221,1010.2,1009.7,4.00959]
[1610389914778,61.01502096,1010.1,1009.7,4.00959]
[1610389915181,61.01382182,1009.9,1009.7,4.00959]
[1610389915978,61.01382182,1009.9,1009.2,55.8621]
[1610389915979,45.3185394,1009.8,1009.2,55.8621]
[1610389916178,62.90308047,1009.8,1009.0,1.9135]
[1610389916578,61.05069501,1009.6,1007.2,1.71823822]
[1610389916777,61.05069501,1009.6,1006.6,6.20502484]
[1610389916979,75.6302,1008.9,1006.8,1.7197234]
[1610389917177,77.7312,1008.9,1006.8,1.7197234]
[1610389917378,95.87277537,1008.9,1006.7,70.8713]